fUST/lending_fUST_20250605
["ID","MTS","AMOUNT","RATE_DAILY","PERIOD"]
[364473101,1749109843942,-151.0,0.00019499,2]
[364473102,1749109843949,-292.488006,0.00019499,2]
[364473103,1749109843956,-151.0,0.00019499,2]
[364473104,1749109843963,-151.0,0.00019499,2]
[364473105,1749109843971,-151.0,0.00019499,2]
[364473106,1749109843978,-151.0,0.00019499,2]
[364473107,1749109843986,-151.0,0.00019499,2]
[364473108,1749109843993,-151.0,0.00019499,2]
[364473109,1749109844001,-151.0,0.00019499,2]
[364473110,1749109844010,-151.0,0.00019499,2]
[364473111,1749109844020,-166.01542,0.00019499,2]
[364473112,1749109844029,-151.0,0.00019499,2]
[364473113,1749109844039,-151.0,0.00019499,2]
[364473114,1749109844049,-151.0,0.00019499,2]
[364473115,1749109844058,-151.0,0.00019499,2]
[364473116,1749109844067,-151.0,0.00019499,2]
[364473117,1749109844076,-151.0,0.00019499,2]
[364473118,1749109844086,-151.0,0.00019499,2]
[364473119,1749109844095,-254.988,0.00019499,2]
[364473120,1749109844104,-254.988,0.00019499,2]
[364473121,1749109844114,-254.988,0.00019499,2]
[364473122,1749109844123,-254.988,0.00019499,2]
[364473127,1749109844132,-249678.92886947,0.000195,2]
[364473129,1749109844237,-151.0,0.000195,2]
[364473131,1749109844247,-151.0,0.000195,2]
[364473133,1749109844257,-194.384065,0.000195,2]
[364473135,1749109844267,-151.0,0.000195,2]
[364473137,1749109844277,-200.203104,0.000195,2]
[364473139,1749109844286,-151.0,0.000195,2]
[364473141,1749109844295,-151.0,0.000195,2]
[364473143,1749109844305,-151.0,0.000195,2]
[364473145,1749109844315,-151.0,0.000195,2]
[364473147,1749109844324,-151.0,0.000195,2]
[364473149,1749109844333,-151.0,0.000195,2]
[364473151,1749109844343,-151.0,0.000195,2]
[364473153,1749109844352,-151.0,0.000195,2]
[364473155,1749109844361,-878.09107036,0.000195,2]
[364473157,1749109844371,-151.0,0.000195,2]
[364473158,1749109844380,-151.0,0.000195,2]
[364473161,1749109844390,-151.0,0.000195,2]
[364473163,1749109844400,-254.988,0.000195,2]
[364473164,1749109844410,-254.988,0.000195,2]
[364473167,1749109844420,-693.98,0.00019543,2]
[364473168,1749109844430,-483.23,0.00019543,2]
[364473170,1749109844439,-440.0,0.00019544,2]
[364473172,1749109844449,-440.0,0.00019544,2]
[364473174,1749109844459,-440.0,0.00019544,2]
[364473176,1749109844468,-440.0,0.00019544,2]
[364473178,1749109844477,-440.0,0.00019545,2]
[364473180,1749109844486,-796.17,0.00019545,2]
[364473182,1749109844495,-440.0,0.00019545,2]
[364473184,1749109844504,-440.0,0.00019545,2]
[364473186,1749109844514,-440.0,0.00019545,2]
[364473188,1749109844523,-440.0,0.00019545,2]
[364473190,1749109844532,-1244.46,0.00019545,2]
[364473192,1749109844542,-344.82288595,0.00019546,2]
[364473194,1749109844551,-1143.24476237,0.0001959,2]
[364473196,1749109844566,-5868.56,0.00019676,2]
[364473198,1749109844575,-400.0,0.00019726,2]
[364473200,1749109844585,-400.0,0.00019726,2]
[364473202,1749109844594,-400.0,0.00019726,2]
[364473204,1749109844604,-466.47,0.00019726,2]
[364473206,1749109844613,-587.0,0.00019783,2]
[364473208,1749109844623,-693.98,0.00019817,2]
[364473210,1749109844633,-483.23,0.00019817,2]
[364473212,1749109844643,-440.0,0.00019818,2]
[364473213,1749109844653,-440.0,0.00019818,2]
[364473216,1749109844663,-440.0,0.00019818,2]
[364473217,1749109844672,-440.0,0.00019818,2]
[364473219,1749109844681,-440.0,0.00019819,2]
[364473221,1749109844691,-796.17,0.00019819,2]
[364473224,1749109844700,-440.0,0.00019819,2]
[364473225,1749109844710,-440.0,0.00019819,2]
[364473228,1749109844719,-440.0,0.00019819,2]
[364473230,1749109844730,-440.0,0.00019819,2]
[364473231,1749109844740,-1244.46,0.00019819,2]
[364473233,1749109844751,-1143.24476237,0.00019831,2]
[364473235,1749109844761,-500.0,0.0001985,2]
[364473237,1749109844771,-227.521,0.00019863,2]
[364473239,1749109844781,-207.4,0.00019867,2]
[364473241,1749109844790,-500.0,0.00019867,2]
[364473243,1749109844799,-500.0,0.00019867,2]
[364473245,1749109844809,-500.0,0.00019867,2]
[364473247,1749109844818,-500.0,0.00019867,2]
[364473249,1749109844827,-500.0,0.00019867,2]
[364473251,1749109844837,-500.0,0.00019867,2]
[364473253,1749109844846,-500.0,0.00019867,2]
[364473255,1749109844855,-500.0,0.00019867,2]
[364473257,1749109844865,-500.0,0.00019867,2]
[364473259,1749109844874,-500.0,0.00019867,2]
[364473261,1749109844883,-500.0,0.00019867,2]
[364473263,1749109844893,-500.0,0.00019867,2]
[364473265,1749109844903,-500.0,0.00019867,2]
[364473267,1749109844912,-500.0,0.00019903,2]
[364473269,1749109844921,-1096.52398555,0.00019911,2]
[364473271,1749109844930,-1100.0,0.00020068,2]
[364473273,1749109844939,-1143.24476237,0.00020072,2]
[364473275,1749109844949,-693.98,0.00020091,2]
[364473277,1749109844958,-483.23,0.00020091,2]
[364473279,1749109844967,-440.0,0.00020092,2]
[364473281,1749109844976,-224.94,0.00020092,2]
[364473283,1749109844986,-440.0,0.00020092,2]
[364473285,1749109844995,-290.47,0.00020092,2]
[364473286,1749109845004,-505.83,0.00020093,2]
[364473288,1749109845014,-796.17,0.00020093,2]
[364473290,1749109845024,-440.0,0.00020093,2]
[364473293,1749109845037,-440.0,0.00020093,2]
[364473295,1749109845047,-440.0,0.00020093,2]
[364473297,1749109845057,-440.0,0.00020093,2]
[364473299,1749109845066,-1244.46,0.00020093,2]
[364473301,1749109845076,-1143.24476237,0.00020314,3]
[364473303,1749109845087,-693.98,0.00020365,2]
[364473305,1749109845096,-483.23,0.00020365,2]
[364473307,1749109845105,-440.0,0.00020366,2]
[364473309,1749109845115,-279.2007,0.00020366,2]
[364473311,1749109845124,-796.17,0.00020367,2]
[364473313,1749109845134,-252.61557722,0.00020367,2]
[364473315,1749109845147,-440.0,0.00020367,2]
[364473317,1749109845157,-440.0,0.00020367,2]
[364473319,1749109845166,-440.0,0.00020367,2]
[364473321,1749109845175,-1072.90972679,0.00020367,2]
[364473343,1749109845387,294.194325,0.00013699,2]
[364473346,1749109845400,-713.44,0.00017899,2]
[364473348,1749109845409,-713.44,0.00018173,2]
[364473349,1749109845420,-713.44,0.00018447,2]
[364473351,1749109845430,-713.44,0.00018721,2]
[364473353,1749109845439,-713.44,0.00018995,2]
[364473355,1749109845449,-713.44,0.00019269,2]
[364473357,1749109845460,-713.44,0.00019543,2]
[364473359,1749109845469,-171.55027321,0.00020367,2]
[364473361,1749109845479,-500.0,0.00020548,2]
[364473363,1749109845488,-261.64743262,0.00020548,2]
[364473365,1749109845498,-1143.24476237,0.00020555,3]
[364473367,1749109845508,-1096.52398555,0.00020574,2]
[364473369,1749109845519,-693.98,0.00020639,2]
[364473371,1749109845529,-483.23,0.00020639,2]
[364473373,1749109845539,-440.0,0.0002064,2]
[364473375,1749109845549,-796.17,0.00020641,2]
[364473377,1749109845559,-0.57354625,0.00020641,2]
[364473380,1749109845575,-293.18871944,0.00020641,2]
[364473382,1749109845585,-440.0,0.00020641,2]
[364473383,1749109845594,-286.81129181,0.00020641,2]
[364473392,1749109845675,-62.10774862,0.00019817,2]
[364473472,1749109846444,-440.0,0.00016804,2]
[364473474,1749109846454,-500.0,0.00019496,2]
[364473476,1749109846464,-651.33225138,0.00019817,2]
[364473478,1749109846473,-713.44,0.00020091,2]
[364473480,1749109846482,-294.194325,0.00020187,2]
[364473482,1749109846492,-713.44,0.00020365,2]
[364473484,1749109846501,-713.44,0.00020639,2]
[364473486,1749109846511,-153.18870819,0.00020641,2]
[364473488,1749109846520,-1244.46,0.00020641,2]
[364473490,1749109846529,-199.47264877,0.00020705,3]
[364473492,1749109846538,-500.0,0.00020705,3]
[364473494,1749109846547,-151.0,0.00020705,2]
[364473496,1749109846556,-500.0,0.00020732,3]
[364473498,1749109846568,-151.0,0.00020732,2]
[364473500,1749109846578,-500.0,0.0002076,3]
[364473502,1749109846587,-151.0,0.0002076,2]
[364473503,1749109846596,-277.75440353,0.00020787,3]
[364473504,1749109846607,-203.19619932,0.00020787,2]
[364473505,1749109846616,-1143.24476237,0.00020797,4]
[364473506,1749109846625,-116.93723045,0.0002082,3]
[364473960,1749110051688,2757.73866098,0.00024226,120]
[364473961,1749110345347,-5000.0,0.00016533,2]
[364473962,1749110345368,-300.0,0.000167,2]
[364473963,1749110345390,-300.0,0.000167,2]
[364473964,1749110345412,-300.0,0.00016701,2]
[364473965,1749110345434,-300.0,0.00016701,2]
[364473966,1749110345454,-300.0,0.00016701,2]
[364473967,1749110345475,-1200.0,0.00016701,2]
[364473968,1749110345497,-4864.0,0.00016702,2]
[364473969,1749110418678,7792.5501493,0.00015858,2]
[364473970,1749110431721,200.0,0.0002443,120]
[364473971,1749110491235,200.0,0.00023915,120]
[364473975,1749110554094,200.0,0.00024163,120]
[364473978,1749110590699,1804.3,0.00025,120]
[364473979,1749110597215,99.68226529,0.00015551,2]
[364473980,1749110597238,65.69725103,0.00015551,2]
[364473981,1749110606962,440.0,0.00025,120]
[364473984,1749110650466,182.0,0.00016,2]
[364473985,1749110654046,440.0,0.00025,120]
[364473987,1749110671190,200.0,0.00024609,120]
[364473991,1749110726417,880.0,0.00025,120]
[364473993,1749110731956,200.0,0.00024181,120]
[364473994,1749110735847,-208.71843324,0.00016205,2]
[364473998,1749110761076,440.0,0.00025,120]
[364474016,1749110861119,-189.59887719,0.00016205,2]
[364474017,1749110886694,-164.36271843,0.00016205,2]
[364474020,1749110900219,264.774893,0.00013699,2]
[364474021,1749110920496,284.22462792,0.00016,2]
[364474022,1749110920523,4715.77537208,0.00016,2]
[364474049,1749110974787,448.5873464,0.0001577,2]
[364474079,1749111032850,-5000.0,0.0001637,2]
[364474080,1749111032861,-196.63293648,0.00016535,2]
[364474081,1749111032874,-1856.73,0.00016687,2]
[364474082,1749111032886,-385.98052487,0.00016702,2]
[364474083,1749111032903,-96.88100273,0.00016702,2]
[364474084,1749111032915,-501.28371668,0.0001679,2]
[364474095,1749111038551,-5000.0,0.00016622,2]
[364474097,1749111038564,-698.71628332,0.0001679,2]
[364474099,1749111038574,-819.32873699,0.00016792,2]
[364474101,1749111038584,-300.0,0.00016798,2]
[364474103,1749111038601,-300.0,0.00016798,2]
[364474105,1749111038612,-300.0,0.00016798,2]
[364474107,1749111038621,-300.0,0.00016798,2]
[364474109,1749111038631,-440.0,0.00016801,2]
[364474111,1749111038641,-440.0,0.00016801,2]
[364474113,1749111038651,-440.0,0.00016801,2]
[364474115,1749111038661,-230.0,0.00016801,2]
[364474118,1749111038672,-440.0,0.00016801,2]
[364474120,1749111038681,-440.0,0.00016801,2]
[364474122,1749111038691,-440.0,0.00016801,2]
[364474124,1749111038701,-576.64,0.00016801,2]
[364474126,1749111038711,-440.0,0.00016801,2]
[364474128,1749111038721,-440.0,0.00016801,2]
[364474130,1749111038732,-847.56,0.00016801,2]
[364474132,1749111038742,-440.0,0.00016801,2]
[364474134,1749111038751,-440.0,0.00016801,2]
[364474137,1749111038761,-500.03,0.00016801,2]
[364474139,1749111038771,-563.07,0.00016801,2]
[364474141,1749111038781,-1123.94,0.00016801,2]
[364474143,1749111038791,-430.0,0.00016802,2]
[364474144,1749111038800,-481.23825487,0.00016802,2]
[364474146,1749111038809,-430.0,0.00016802,2]
[364474148,1749111038819,-430.0,0.00016802,2]
[364474151,1749111038829,-500.0,0.00016802,2]
[364474153,1749111038839,-440.0,0.00016802,2]
[364474154,1749111038849,-440.0,0.00016802,2]
[364474156,1749111038859,-440.0,0.00016802,2]
[364474159,1749111038869,-430.46259647,0.00016802,2]
[364474161,1749111038879,-405.47137417,0.00016802,2]
[364474163,1749111038889,-433.02374545,0.00016802,2]
[364474165,1749111038898,-430.0,0.00016802,2]
[364474166,1749111038908,-430.0,0.00016802,2]
[364474168,1749111038917,-430.0,0.00016802,2]
[364474171,1749111038927,-430.0,0.00016802,2]
[364474172,1749111038936,-430.0,0.00016802,2]
[364474175,1749111038946,-430.0,0.00016802,2]
[364474176,1749111038955,-440.0,0.00016802,2]
[364474178,1749111038967,-430.0,0.00016802,2]
[364474180,1749111038978,-430.0,0.00016802,2]
[364474182,1749111038988,-430.0,0.00016802,2]
[364474184,1749111038998,-430.0,0.00016802,2]
[364474186,1749111039010,-430.0,0.00016802,2]
[364474188,1749111039020,-405.20624908,0.00016802,2]
[364474190,1749111039030,-511.87741754,0.00016802,2]
[364474191,1749111039040,-430.0,0.00016802,2]
[364474193,1749111039051,-431.08077573,0.00016802,2]
[364474195,1749111039061,-198.89472786,0.00016802,2]
[364474197,1749111039071,-1110.35,0.00016802,2]
[364474199,1749111039081,-430.0,0.00016802,2]
[364474201,1749111039091,-440.0,0.00016802,2]
[364474203,1749111039101,-440.0,0.00016802,2]
[364474205,1749111039111,-774.21,0.00016802,2]
[364474207,1749111039121,-440.0,0.00016802,2]
[364474209,1749111039132,-440.0,0.00016802,2]
[364474211,1749111039142,-503.59,0.00016802,2]
[364474213,1749111039152,-440.0,0.00016802,2]
[364474215,1749111039162,-440.0,0.00016802,2]
[364474217,1749111039171,-440.0,0.00016802,2]
[364474219,1749111039182,-440.0,0.00016802,2]
[364474220,1749111039192,-440.0,0.00016802,2]
[364474222,1749111039201,-440.0,0.00016802,2]
[364474224,1749111039211,-440.0,0.00016802,2]
[364474226,1749111039220,-440.0,0.00016802,2]
[364474228,1749111039230,-440.0,0.00016802,2]
[364474230,1749111039239,-440.0,0.00016802,2]
[364474232,1749111039250,-440.0,0.00016802,2]
[364474234,1749111039260,-440.0,0.00016802,2]
[364474236,1749111039271,-440.0,0.00016802,2]
[364474238,1749111039280,-440.0,0.00016802,2]
[364474240,1749111039289,-500.0,0.00016802,2]
[364474242,1749111039299,-440.0,0.00016802,2]
[364474244,1749111039310,-440.0,0.00016803,2]
[364474246,1749111039320,-440.0,0.00016803,2]
[364474248,1749111039329,-440.0,0.00016803,2]
[364474250,1749111039339,-440.0,0.00016803,2]
[364474252,1749111039347,-440.0,0.00016803,2]
[364474254,1749111039357,-1165.79,0.00016803,2]
[364474255,1749111039366,-440.0,0.00016803,2]
[364474257,1749111039375,-440.0,0.00016803,2]
[364474259,1749111039384,-440.0,0.00016803,2]
[364474261,1749111039394,-440.0,0.00016803,2]
[364474263,1749111039404,-1276.94,0.00016803,2]
[364474265,1749111039414,-440.0,0.00016804,2]
[364474267,1749111039424,-413.57330831,0.00016804,2]
[364474269,1749111039433,-440.0,0.00016804,2]
[364474271,1749111039442,-430.0,0.00016804,2]
[364474273,1749111039452,-455.27775627,0.00016804,2]
[364474275,1749111039461,-203.34813226,0.00016975,2]
[364474277,1749111039471,-440.0,0.00017075,2]
[364474279,1749111039482,-226.78806273,0.00017075,2]
[364474281,1749111039491,-440.0,0.00017075,2]
[364474283,1749111039501,-430.0,0.00017075,2]
[364474285,1749111039511,-440.0,0.00017075,2]
[364474287,1749111039520,-440.0,0.00017075,2]
[364474289,1749111039530,-576.64,0.00017075,2]
[364474291,1749111039539,-440.0,0.00017075,2]
[364474293,1749111039549,-430.0,0.00017075,2]
[364474295,1749111039559,-847.56,0.00017075,2]
[364474297,1749111039569,-440.0,0.00017075,2]
[364474299,1749111039579,-440.0,0.00017075,2]
[364474301,1749111039588,-563.07,0.00017075,2]
[364474303,1749111039598,-500.0,0.00017076,2]
[364474305,1749111039608,-430.0,0.00017076,2]
[364474307,1749111039617,-440.0,0.00017076,2]
[364474309,1749111039626,-440.0,0.00017076,2]
[364474311,1749111039636,-440.0,0.00017076,2]
[364474312,1749111039646,-1110.35,0.00017076,2]
[364474314,1749111039655,-440.0,0.00017076,2]
[364474316,1749111039665,-774.21,0.00017076,2]
[364474319,1749111039676,-440.0,0.00017076,2]
[364474320,1749111039685,-440.0,0.00017076,2]
[364474322,1749111039694,-503.59,0.00017076,2]
[364474324,1749111039704,-440.0,0.00017076,2]
[364474326,1749111039714,-440.0,0.00017076,2]
[364474328,1749111039725,-223.58908231,0.00017076,2]
[364474330,1749111039735,-440.0,0.00017076,2]
[364474332,1749111039744,-440.0,0.00017076,2]
[364474334,1749111039754,-440.0,0.00017076,2]
[364474336,1749111039764,-440.0,0.00017076,2]
[364474338,1749111039774,-440.0,0.00017076,2]
[364474340,1749111039784,-430.0,0.00017076,2]
[364474342,1749111039794,-500.0,0.00017076,2]
[364474344,1749111039804,-440.0,0.00017076,2]
[364474346,1749111039813,-440.0,0.00017077,2]
[364474348,1749111039823,-440.0,0.00017077,2]
[364474351,1749111039833,-440.0,0.00017077,2]
[364474354,1749111039844,-440.0,0.00017077,2]
[364474357,1749111039854,-1165.79,0.00017077,2]
[364474360,1749111039864,-440.0,0.00017077,2]
[364474362,1749111039874,-440.0,0.00017077,2]
[364474364,1749111039883,-440.0,0.00017077,2]
[364474366,1749111039894,-440.0,0.00017077,2]
[364474368,1749111039904,-1276.94,0.00017077,2]
[364474370,1749111039915,-440.0,0.00017349,2]
[364474372,1749111039925,-440.0,0.00017349,2]
[364474374,1749111039935,-440.0,0.00017349,2]
[364474376,1749111039946,-440.0,0.00017349,2]
[364474378,1749111039956,-576.64,0.00017349,2]
[364474380,1749111039969,-440.0,0.00017349,2]
[364474382,1749111039979,-847.56,0.00017349,2]
[364474384,1749111039990,-440.0,0.00017349,2]
[364474386,1749111040000,-440.0,0.00017349,2]
[364474388,1749111040011,-563.07,0.00017349,2]
[364474390,1749111040021,-181.63,0.0001735,2]
[364474392,1749111040031,-440.0,0.0001735,2]
[364474394,1749111040043,-440.0,0.0001735,2]
[364474396,1749111040054,-1110.35,0.0001735,2]
[364474398,1749111040065,-440.0,0.0001735,2]
[364474400,1749111040075,-774.21,0.0001735,2]
[364474402,1749111040086,-440.0,0.0001735,2]
[364474405,1749111040096,-440.0,0.0001735,2]
[364474407,1749111040106,-503.59,0.0001735,2]
[364474409,1749111040116,-571.90251388,0.0001735,2]
[364474411,1749111040125,-440.0,0.0001735,2]
[364474413,1749111040135,-440.0,0.0001735,2]
[364474415,1749111040145,-440.0,0.0001735,2]
[364474417,1749111040156,-440.0,0.0001735,2]
[364474419,1749111040166,-440.0,0.0001735,2]
[364474421,1749111040176,-440.0,0.0001735,2]
[364474423,1749111040186,-500.0,0.0001735,2]
[364474439,1749111040334,-440.0,0.0001735,2]
[364474441,1749111040345,-440.0,0.00017351,2]
[364474443,1749111040354,-440.0,0.00017351,2]
[364474445,1749111040366,-440.0,0.00017351,2]
[364474447,1749111040376,-233.98697092,0.00017351,2]
[364474449,1749111040386,-440.0,0.00017351,2]
[364474451,1749111040396,-1165.79,0.00017351,2]
[364474453,1749111040407,-440.0,0.00017351,2]
[364474455,1749111040418,-440.0,0.00017351,2]
[364474457,1749111040428,-440.0,0.00017351,2]
[364474459,1749111040437,-440.0,0.00017351,2]
[364474461,1749111040446,-1276.94,0.00017351,2]
[364474463,1749111040456,-440.0,0.00017623,2]
[364474465,1749111040466,-270.0,0.00017623,2]
[364474467,1749111040475,-440.0,0.00017623,2]
[364474469,1749111040485,-440.0,0.00017623,2]
[364474471,1749111040495,-576.64,0.00017623,2]
[364474473,1749111040504,-440.0,0.00017623,2]
[364474475,1749111040515,-847.56,0.00017623,2]
[364474477,1749111040524,-440.0,0.00017623,2]
[364474479,1749111040534,-440.0,0.00017623,2]
[364474481,1749111040543,-563.07,0.00017623,2]
[364474483,1749111040553,-319.61656053,0.00017624,2]
[364474485,1749111040565,-279.2007,0.00017624,2]
[364474487,1749111040575,-1110.35,0.00017624,2]
[364474489,1749111040584,-440.0,0.00017624,2]
[364474491,1749111040595,-774.21,0.00017624,2]
[364474493,1749111040605,-440.0,0.00017624,2]
[364474495,1749111040615,-440.0,0.00017624,2]
[364474497,1749111040625,-503.59,0.00017624,2]
[364474499,1749111040635,-440.0,0.00017624,2]
[364474501,1749111040645,-440.0,0.00017624,2]
[364474503,1749111040655,-440.0,0.00017624,2]
[364474505,1749111040664,-440.0,0.00017624,2]
[364474507,1749111040674,-440.0,0.00017624,2]
[364474509,1749111040684,-440.0,0.00017624,2]
[364474511,1749111040694,-500.0,0.00017624,2]
[364474513,1749111040703,-440.0,0.00017624,2]
[364474515,1749111040713,-440.0,0.00017625,2]
[364474517,1749111040723,-440.0,0.00017625,2]
[364474519,1749111040733,-440.0,0.00017625,2]
[364474521,1749111040742,-440.0,0.00017625,2]
[364474523,1749111040752,-1165.79,0.00017625,2]
[364474525,1749111040762,-440.0,0.00017625,2]
[364474527,1749111040772,-440.0,0.00017625,2]
[364474529,1749111040782,-440.0,0.00017625,2]
[364474531,1749111040791,-440.0,0.00017625,2]
[364474533,1749111040800,-1276.94,0.00017625,2]
[364474535,1749111040810,-440.0,0.00017897,2]
[364474537,1749111040819,-440.0,0.00017897,2]
[364474539,1749111040828,-440.0,0.00017897,2]
[364474541,1749111040838,-576.64,0.00017897,2]
[364474543,1749111040848,-440.0,0.00017897,2]
[364474545,1749111040858,-847.56,0.00017897,2]
[364474547,1749111040867,-290.47,0.00017897,2]
[364474549,1749111040876,-347.33502736,0.00017897,2]
[364474551,1749111040885,-563.07,0.00017897,2]
[364474553,1749111040895,-1110.35,0.00017898,2]
[364474555,1749111040905,-440.0,0.00017898,2]
[364474557,1749111040914,-774.21,0.00017898,2]
[364474558,1749111040925,-440.0,0.00017898,2]
[364474559,1749111040935,-440.0,0.00017898,2]
[364474561,1749111040945,-503.59,0.00017898,2]
[364474562,1749111040954,-440.0,0.00017898,2]
[364474563,1749111040966,-440.0,0.00017898,2]
[364474564,1749111040976,-440.0,0.00017898,2]
[364474565,1749111040987,-440.0,0.00017898,2]
[364474566,1749111040996,-440.0,0.00017898,2]
[364474568,1749111041006,-440.0,0.00017898,2]
[364474570,1749111041017,-440.0,0.00017899,2]
[364474572,1749111041027,-440.0,0.00017899,2]
[364474574,1749111041035,-440.0,0.00017899,2]
[364474576,1749111041047,-189.54,0.00017899,2]
[364474578,1749111041056,-1165.79,0.00017899,2]
[364474580,1749111041065,-440.0,0.00017899,2]
[364474582,1749111041075,-440.0,0.00017899,2]
[364474584,1749111041084,-440.0,0.00017899,2]
[364474586,1749111041094,-160.0,0.00017899,2]
[364474588,1749111041103,-440.0,0.00017899,2]
[364474590,1749111041113,-1276.94,0.00017899,2]
[364474592,1749111041122,-1840.18557882,0.000179,2]
[364474594,1749111041132,-203.34813224,0.00017903,2]
[364474596,1749111041141,-500.0,0.00018141,2]
[364474598,1749111041151,-1840.18557876,0.00018141,2]
[364474600,1749111041161,-440.0,0.00018171,2]
[364474602,1749111041171,-440.0,0.00018171,2]
[364474604,1749111041180,-440.0,0.00018171,2]
[364474606,1749111041190,-576.64,0.00018171,2]
[364474608,1749111041199,-440.0,0.00018171,2]
[364474610,1749111041208,-847.56,0.00018171,2]
[364474612,1749111041218,-563.07,0.00018171,2]
[364474614,1749111041228,-1110.35,0.00018172,2]
[364474616,1749111041237,-440.0,0.00018172,2]
[364474618,1749111041247,-774.21,0.00018172,2]
[364474620,1749111041257,-440.0,0.00018172,2]
[364474622,1749111041267,-440.0,0.00018172,2]
[364474624,1749111041277,-503.59,0.00018172,2]
[364474626,1749111041286,-440.0,0.00018172,2]
[364474628,1749111041295,-440.0,0.00018172,2]
[364474630,1749111041305,-440.0,0.00018172,2]
[364474632,1749111041314,-440.0,0.00018172,2]
[364474634,1749111041325,-440.0,0.00018172,2]
[364474636,1749111041336,-440.0,0.00018172,2]
[364474638,1749111041345,-569.05,0.00018173,2]
[364474640,1749111041355,-440.0,0.00018173,2]
[364474642,1749111041365,-440.0,0.00018173,2]
[364474644,1749111041375,-1165.79,0.00018173,2]
[364474646,1749111041384,-440.0,0.00018173,2]
[364474648,1749111041394,-440.0,0.00018173,2]
[364474650,1749111041403,-440.0,0.00018173,2]
[364474652,1749111041413,-440.0,0.00018173,2]
[364474654,1749111041422,-1276.94,0.00018173,2]
[364474656,1749111041432,-3713.45,0.00018204,2]
[364474658,1749111041441,-500.0,0.00018236,2]
[364474660,1749111041453,-360.0,0.00018351,2]
[364474662,1749111041463,-500.0,0.00018382,2]
[364474664,1749111041473,-1840.18557876,0.00018383,2]
[364474666,1749111041484,-440.0,0.00018445,2]
[364474668,1749111041497,-440.0,0.00018445,2]
[364474670,1749111041507,-440.0,0.00018445,2]
[364474672,1749111041518,-576.64,0.00018445,2]
[364474674,1749111041528,-440.0,0.00018445,2]
[364474676,1749111041539,-847.56,0.00018445,2]
[364474678,1749111041550,-563.07,0.00018445,2]
[364474680,1749111041561,-1110.35,0.00018446,2]
[364474682,1749111041572,-440.0,0.00018446,2]
[364474684,1749111041582,-774.21,0.00018446,2]
[364474686,1749111041594,-440.0,0.00018446,2]
[364474688,1749111041605,-440.0,0.00018446,2]
[364474690,1749111041616,-503.59,0.00018446,2]
[364474691,1749111041626,-440.0,0.00018446,2]
[364474694,1749111041636,-440.0,0.00018446,2]
[364474696,1749111041646,-288.80174403,0.00018446,2]
[364474698,1749111041657,-440.0,0.00018446,2]
[364474700,1749111041667,-440.0,0.00018446,2]
[364474702,1749111041677,-440.0,0.00018446,2]
[364474704,1749111041687,-272.76886446,0.00018447,2]